bitfinex/quotes_SOLUSD_20250918
["timestamp","ask_amount","ask_price","bid_price","bid_amount"]
[1758207717937,1e-08,247.92,247.91,23.49772759]
[1758207718803,1e-08,247.92,247.91,35.85889315]
[1758207719400,0.06,247.95,247.94,39.59559401]
[1758207719600,1e-08,247.95,247.94,76.81300592]
[1758207719799,1e-08,247.95,247.94,89.80417148]
[1758207720030,1e-08,247.95,247.94,89.4008481]
[1758207720208,1e-08,247.95,247.94,89.68517124]
[1758207720411,1e-08,247.97,247.95,0.28432314]
[1758207720727,1e-08,247.97,247.96,18.03179339]
[1758207721025,1e-08,247.97,247.96,54.84588192]
[1758207721522,1e-08,247.97,247.96,23.27020506]
[1758207721730,1e-08,247.97,247.96,22.86691421]
[1758207721921,1e-08,247.97,247.96,54.44259107]
[1758207722396,1e-08,247.97,247.96,54.72691421]
[1758207722600,1e-08,247.97,247.96,55.13020506]
[1758207724317,1e-08,247.97,247.96,22.58259107]
[1758207724515,1e-08,247.97,247.96,54.44259107]
[1758207724915,1e-08,247.97,247.96,22.58259107]
[1758207725115,1e-08,247.97,247.96,54.44259107]
[1758207726238,0.67000001,247.97,247.96,35.89290853]
[1758207726426,0.67000001,247.97,247.96,4.03290853]
[1758207726605,0.67000001,247.97,247.95,57.86]
[1758207726805,0.67,247.96,247.95,43.62866519]
[1758207727006,1e-08,247.97,247.95,43.62866519]
[1758207727220,0.67,247.96,247.95,43.62866519]
[1758207727614,0.67,247.96,247.95,26.0]
[1758207727831,0.67,247.96,247.92,49.48915322]
[1758207728035,0.67,247.95,247.94,26.0]
[1758207728206,0.67,247.95,247.9,4.03379368]
[1758207728406,0.67,247.94,247.91,45.45559401]
[1758207728640,0.67,247.93,247.91,13.59559401]
[1758207728934,4.03280105,247.97,247.94,26.0]
[1758207729126,1e-08,247.97,247.94,26.0]
[1758207729534,2.35573132,247.96,247.88,4.06419005]
[1758207729837,0.67,247.95,247.88,0.03]
[1758207730544,0.67,247.95,247.89,26.0]
[1758207730742,2.35573132,247.94,247.89,26.0]
[1758207730946,1.68573132,247.92,247.88,0.03]
[1758207731159,0.67,247.91,247.88,0.03]
[1758207731520,0.67,247.9,247.88,0.03]
[1758207731913,0.67,247.93,247.88,0.03]
[1758207732114,0.67,247.93,247.9,26.0]
[1758207732520,0.67,247.93,247.91,0.03]
[1758207733034,0.67000001,247.97,247.91,13.62559401]
[1758207733237,0.67000001,247.97,247.95,4.03307118]
[1758207733433,1e-08,247.97,247.95,4.03307118]
[1758207734136,1e-08,247.97,247.91,0.03]
[1758207734137,0.67,247.96,247.91,0.03]
[1758207734329,0.67,247.96,247.91,30.06366687]
[1758207734640,1e-08,247.97,247.91,30.06366687]
[1758207734835,1e-08,247.97,247.92,13.59559401]
[1758207735023,0.67,247.96,247.92,13.59559401]
[1758207735335,0.67,247.95,247.92,17.62902953]
[1758207735519,0.67,247.94,247.92,17.62902953]
[1758207735718,0.67,247.93,247.92,17.62902953]
[1758207736042,0.67000001,247.97,247.92,17.62902953]
[1758207736235,0.67,247.96,247.92,17.62902953]
[1758207736434,0.67,247.95,247.92,17.62902953]
[1758207736823,1e-08,247.97,247.92,17.62902953]
[1758207737022,0.67,247.94,247.92,17.62902953]
[1758207737420,0.67,247.94,247.92,4.03343552]
[1758207738138,1e-08,247.97,247.92,4.03343552]
[1758207738320,0.67,247.96,247.92,4.03343552]
[1758207738919,0.67,247.95,247.92,4.03343552]
[1758207739143,1e-08,247.97,247.92,4.03343552]
[1758207739442,0.67,247.96,247.92,4.03343552]
[1758207739641,0.67,247.95,247.92,4.03343552]
[1758207739834,0.67,247.94,247.92,26.0]
[1758207740345,0.67000001,247.97,247.92,26.0]
[1758207740541,0.67,247.96,247.92,26.0]
[1758207740728,0.67,247.95,247.92,26.0]
[1758207741135,0.67,247.95,247.92,30.03348537]
[1758207741336,1e-08,247.97,247.92,30.03348537]
[1758207741535,0.67,247.94,247.92,30.03348537]
[1758207741741,0.67,247.96,247.92,30.03348537]
[1758207741936,0.67,247.95,247.92,30.03348537]
[1758207742136,0.67,247.94,247.92,30.03348537]
[1758207742441,1e-08,247.97,247.92,30.03348537]
[1758207742629,0.67000001,247.97,247.92,30.03348537]
[1758207742835,0.67,247.96,247.92,30.03348537]
[1758207743353,0.67,247.96,247.92,40.1173834]
[1758207743851,1e-08,247.97,247.92,40.1173834]
[1758207744549,0.67000001,247.97,247.92,40.1173834]
[1758207744936,1e-08,247.97,247.96,26.0]
[1758207745647,1e-08,247.97,247.96,40.22559401]
[1758207745947,1e-08,247.97,247.96,40.62888486]
[1758207746729,1e-08,247.97,247.96,44.66179339]
[1758207747651,1e-08,247.97,247.96,44.94611653]
[1758207753642,0.1,248.0,247.97,13.87991715]
[1758207753852,0.1,248.0,247.99,39.87991715]
[1758207754254,1e-08,248.0,247.99,40.50991715]
[1758207754548,1e-08,248.01,248.0,13.87991715]
[1758207754851,1e-08,248.01,248.0,14.28314295]
[1758207755037,1e-08,248.01,248.0,18.31540101]
[1758207755245,1e-08,248.01,248.0,18.94540101]
[1758207756052,0.67,248.1,248.07,26.0]
[1758207756254,0.67,248.1,248.08,13.59559401]
[1758207756550,0.83,248.09,248.08,13.59559401]
[1758207757139,0.83,248.09,248.08,17.62655176]
[1758207760559,0.16,248.09,248.08,17.9108749]
[1758207760744,0.16,248.09,248.08,18.31397067]
[1758207761865,0.83,248.09,248.08,17.62655176]
[1758207762244,0.16,248.09,248.08,26.0]
[1758207762550,0.16,248.09,248.08,39.59559401]
[1758207763146,0.16,248.09,248.08,43.9108749]
[1758207763458,0.16,248.09,248.08,43.62655176]
[1758207765873,0.16,248.09,248.08,43.9108749]
[1758207767454,1e-08,248.09,248.08,44.5408749]
[1758207767643,1e-08,248.09,248.08,56.62646934]
[1758207771851,1e-08,248.09,248.08,55.85430777]
[1758207772044,1e-08,248.09,248.08,57.46704842]
[1758207772372,1e-08,248.09,248.08,58.23920999]
[1758207772545,1e-08,248.09,248.08,57.60920999]
[1758207773744,1e-08,248.09,248.08,51.44759358]
[1758207774145,0.67000001,248.09,248.08,19.23929241]
[1758207774352,0.67000001,248.09,248.08,15.20833466]
[1758207774656,0.67000001,248.09,248.06,26.0]
[1758207774856,0.67000001,248.09,248.05,13.59559401]
[1758207774857,0.68,248.08,248.05,13.59559401]
[1758207775665,0.68,248.08,248.07,13.59559401]
[1758207776778,0.68,248.08,248.07,26.0]
[1758207776956,0.68,248.08,248.05,39.59559401]
[1758207777274,0.68,248.07,248.05,39.59559401]
[1758207777471,0.68,248.06,248.05,39.59559401]
[1758207777647,0.68,248.06,248.05,43.62703928]
[1758207778359,0.68000001,248.09,248.05,53.70565246]
[1758207778544,1e-08,248.09,248.06,0.28432314]
[1758207779455,1e-08,248.09,248.08,0.28432314]
[1758207779962,1e-08,248.09,248.08,4.31528089]
[1758207780347,1e-08,248.09,248.08,4.71837666]
[1758207780766,1e-08,248.09,248.08,24.2379487]
[1758207780943,1e-08,248.09,248.08,30.39956511]
[1758207781267,0.68000001,248.09,248.08,29.99646934]
[1758207781473,1e-08,248.09,248.08,29.99646934]
[1758207781965,1e-08,248.09,248.08,30.39956511]
[1758207783850,1e-08,248.12,248.08,41.10695949]
[1758207784169,1e-08,248.14,248.12,13.59559401]
[1758207784359,1e-08,248.14,248.13,25.96551159]
[1758207784549,1e-08,248.14,248.13,26.59551159]
[1758207784755,1e-08,248.14,248.13,20.67153356]
[1758207785054,1e-08,248.14,248.13,22.28388417]
[1758207785260,1e-08,248.14,248.13,25.68402965]
[1758207785660,0.68000001,248.14,248.13,17.62573949]
[1758207786470,0.68000001,248.14,248.13,4.03014548]
[1758207786650,0.68000001,248.14,248.1,13.59559401]
[1758207786852,0.68,248.13,248.11,4.03047035]
[1758207787053,1e-08,248.14,248.12,26.0]
[1758207787272,1e-08,248.14,248.13,4.03014548]
[1758207787969,1e-08,248.14,248.11,4.03037037]
[1758207788179,0.68,248.13,248.12,26.0]
[1758207788861,1e-08,248.14,248.12,26.0]
[1758207789176,1e-08,248.14,248.13,39.59559401]
[1758207789373,1e-08,248.14,248.13,43.62573949]
[1758207789569,0.68000001,248.14,248.13,30.03014548]
[1758207790470,1e-08,248.14,248.13,43.62573949]
[1758207790878,1e-08,248.14,248.13,44.94307717]
[1758207791052,1e-08,248.14,248.13,52.71710918]
[1758207792676,1e-08,248.14,248.13,58.37901444]
[1758207793356,1e-08,248.14,248.13,57.74901444]
[1758207794170,0.68000001,248.14,248.13,29.44926116]
[1758207794479,1e-08,248.14,248.13,49.7873559]
[1758207794655,1e-08,248.14,248.13,23.7873559]
[1758207794857,0.68000001,248.14,248.13,49.7873559]
[1758207795153,0.68000001,248.14,248.13,17.62573949]
[1758207797076,1e-08,248.14,248.13,43.62573949]
[1758207797270,1e-08,248.14,248.13,43.91006263]
[1758207797585,1e-08,248.14,248.13,44.94307717]
[1758207797767,1e-08,248.14,248.13,51.10469358]
[1758207798879,1e-08,248.14,248.13,25.10469358]
[1758207799176,1e-08,248.14,248.13,51.10469358]
[1758207799488,1e-08,248.14,248.13,25.10469358]
[1758207799883,1e-08,248.14,248.13,24.47469358]
[1758207800070,1e-08,248.14,248.13,24.07167904]
[1758207800472,0.68000001,248.14,248.13,17.62573949]
[1758207800668,0.68000001,248.14,248.13,4.03014548]
[1758207800869,0.68000001,248.14,248.11,4.03038388]
[1758207801088,1e-08,248.14,248.11,4.03038388]
[1758207801273,0.68,248.13,248.12,26.0]
[1758207801473,0.68,248.13,248.11,4.03038388]
[1758207801679,1e-08,248.14,248.13,30.03014548]
[1758207801983,1e-08,248.14,248.13,4.03014548]
[1758207802179,0.68000001,248.14,248.13,26.0]
[1758207802366,0.68000001,248.14,248.08,0.03]
[1758207802565,0.68000001,248.14,248.09,4.03079527]
[1758207802765,0.68,248.13,248.1,26.0]
[1758207802976,1e-08,248.14,248.11,39.59559401]
[1758207803166,1e-08,248.14,248.12,0.28432314]
[1758207803576,1e-08,248.14,248.12,0.68735393]
[1758207803863,1e-08,248.14,248.13,17.91006263]
[1758207805185,0.68000001,248.14,248.13,17.91006263]
[1758207805389,0.68000001,248.14,248.13,17.62573949]
[1758207806294,0.68000001,248.14,248.13,4.03014548]
[1758207806589,0.68000001,248.14,248.12,26.0]
[1758207806779,0.68,248.13,248.12,30.03028489]
[1758207807877,0.68,248.13,248.12,26.0]
[1758207808075,0.68,248.13,248.11,0.03]
[1758207810517,10.75755283,248.13,248.11,0.03]
[1758207810892,2.71051947,248.12,248.11,0.03]
[1758207811204,2.70931967,248.12,248.11,0.03]
[1758207811503,3.38931967,248.12,248.08,0.03]
[1758207811680,6.0473807,248.09,248.08,0.03]
[1758207812075,6.7273807,248.09,248.08,0.03]
[1758207812896,10.75817597,248.09,248.08,0.03]
[1758207813593,6.7273807,248.09,248.08,0.03]
[1758207813901,0.68,248.09,248.08,0.03]
[1758207814900,10.75817597,248.09,248.08,0.03]
[1758207815108,11.04249911,248.09,248.08,0.03]
[1758207815405,7.70043745,248.09,248.08,0.03]
[1758207815585,12.37221814,248.09,248.08,0.03]
[1758207815788,6.7273807,248.09,248.08,0.03]
[1758207816577,131.0,248.13,248.08,0.03]
[1758207816578,0.69,248.12,248.08,0.03]
[1758207817076,0.69,248.11,248.08,0.03]
[1758207817494,1e-08,248.14,248.08,0.03]
[1758207817800,0.69,248.1,248.08,0.03]
[1758207817991,0.69,248.09,248.08,0.03]
[1758207818192,0.69,248.12,248.08,0.03]
[1758207818585,0.69,248.11,248.08,0.03]
[1758207819095,1e-08,248.14,248.08,0.03]
[1758207819397,0.69000001,248.14,248.08,0.03]
[1758207819977,1e-08,248.14,248.1,26.0]
[1758207820579,1e-08,248.14,248.13,26.0]
[1758207821512,1e-08,248.14,248.13,44.28573949]
[1758207821809,1e-08,248.14,248.13,44.57006263]
[1758207822181,1e-08,248.14,248.13,43.62573949]
[1758207824109,1e-08,248.14,248.13,44.28573949]
[1758207824285,1e-08,248.14,248.13,43.62573949]
[1758207825007,1e-08,248.14,248.13,44.28573949]
[1758207825888,1e-08,248.14,248.13,43.62573949]
[1758207826297,1e-08,248.14,248.13,44.28573949]
[1758207827313,1e-08,248.14,248.13,44.57006263]
[1758207827816,1e-08,248.14,248.13,43.91006263]
[1758207828399,1e-08,248.14,248.13,44.97307717]
[1758207828910,1e-08,248.14,248.13,44.31307717]
[1758207829414,1e-08,248.14,248.13,44.97307717]
[1758207830610,1e-08,248.14,248.13,43.91006263]
[1758207831985,1e-08,248.14,248.13,44.57006263]
[1758207832189,1e-08,248.14,248.13,43.91006263]
[1758207835256,1e-08,248.14,248.13,44.57006263]
[1758207835744,1e-08,248.14,248.13,43.91006263]
[1758207836432,1e-08,248.14,248.13,30.31446862]
[1758207836628,1e-08,248.14,248.13,43.91006263]
[1758207837546,1e-08,248.14,248.13,43.62573949]
[1758207839335,0.72000001,248.14,248.13,43.62573949]
[1758207839536,1e-08,248.14,248.13,43.62573949]
[1758207839947,1e-08,248.14,248.13,30.03014548]
[1758207840439,1e-08,248.14,248.13,43.62573949]
[1758207841733,0.72000001,248.14,248.13,43.62573949]
[1758207842044,0.72000001,248.14,248.12,26.0]
[1758207842253,0.72000001,248.14,248.11,0.03]
[1758207842254,0.72,248.13,248.11,0.03]
[1758207842627,0.68,248.12,248.11,0.03]
[1758207842832,1e-08,248.14,248.11,0.03]
[1758207842833,0.68000001,248.14,248.11,0.03]
[1758207843236,1e-08,248.14,248.13,39.59559401]
[1758207844028,1e-08,248.14,248.13,43.62573949]
[1758207844446,1e-08,248.14,248.13,44.31307717]
[1758207844633,1e-08,248.14,248.13,44.97307717]
[1758207844832,1e-08,248.14,248.13,44.31307717]
[1758207846327,1e-08,248.14,248.13,43.91006263]
[1758207847845,1e-08,248.14,248.13,44.97307717]
[1758207848046,1e-08,248.14,248.13,51.13469358]
[1758207848635,1e-08,248.17,248.16,39.87991715]
[1758207848846,1e-08,248.17,248.16,40.28288297]
[1758207849051,1e-08,248.17,248.16,40.94288297]
[1758207850141,1e-08,248.19,248.17,13.87991715]
[1758207850346,1e-08,248.19,248.17,26.21261662]
[1758207850654,1e-08,248.19,248.18,18.31218404]
[1758207850857,1e-08,248.19,248.18,18.97218404]
[1758207851361,1e-08,248.19,248.18,18.31218404]
[1758207851649,0.68000001,248.19,248.18,17.62492755]
[1758207852032,0.68000001,248.19,248.18,4.02933354]
[1758207852350,0.68000001,248.19,248.13,10.07522813]
[1758207852566,0.68,248.18,248.1,13.59559401]
[1758207852851,0.68,248.18,248.11,0.31432314]
[1758207853041,0.68,248.18,248.11,0.03]
[1758207853236,2.36268757,248.18,248.11,0.03]
[1758207853436,0.68,248.18,248.11,0.03]
[1758207853634,1.68268757,248.16,248.11,0.03]
[1758207853841,1.68268757,248.16,248.08,13.62559401]
[1758207854038,0.68,248.15,248.08,0.03]
[1758207854254,0.68,248.15,248.06,0.03]
[1758207854466,4.03128275,248.06,248.03,0.03]
[1758207854640,0.68,248.05,248.03,0.03]
[1758207855765,0.68,248.04,248.03,0.03]
[1758207856239,0.68,248.08,248.03,26.03]
[1758207856461,0.68,248.07,248.04,4.0316078]
[1758207856655,0.68,248.06,248.04,4.0316078]
[1758207856842,0.68,248.05,248.04,4.0316078]
[1758207857163,0.68,248.05,248.03,30.06172855]
[1758207857556,0.68,248.04,248.03,30.06172855]
[1758207858545,0.68,248.04,248.03,26.03]
[1758207858745,0.68,248.04,248.03,0.03]
[1758207859871,4.57987864,248.04,248.03,0.03]
[1758207860167,4.86420178,248.04,248.03,0.03]
[1758207860670,8.89580958,248.04,248.03,0.03]
[1758207861771,29.09128324,248.04,248.03,0.03]
[1758207861940,25.1914046,248.04,248.03,0.03]
[1758207862361,22.49140359,248.04,248.03,0.03]
[1758207862565,26.39128223,248.04,248.03,0.03]
[1758207862942,46.39128223,248.04,248.03,0.03]
[1758207864445,42.49140359,248.04,248.03,0.03]
[1758207864651,18.59152495,248.04,248.03,0.03]
[1758207864858,48.49140359,248.04,248.03,0.03]
[1758207868867,34.89580958,248.04,248.03,0.03]
[1758207869263,26.68,248.04,248.03,0.03]
[1758207869468,0.06,248.05,248.03,0.03]
[1758207870381,0.06,248.05,248.04,0.71]
[1758207871064,0.06,248.05,248.03,4.06161141]
[1758207872259,0.06,248.05,248.03,0.03]
[1758207872874,4.09149793,248.05,248.03,0.03]
[1758207873087,0.69,248.04,248.03,0.03]
[1758207873267,4.58987864,248.04,248.03,0.03]
[1758207874068,0.06,248.05,248.03,0.03]
[1758207874358,0.06,248.05,248.04,0.7]
[1758207874782,0.06,248.05,248.04,4.7316078]
[1758207875484,0.06,248.05,248.04,4.0316078]
[1758207876181,0.06,248.05,248.04,4.7316078]
[1758207876568,0.06,248.05,248.04,4.0316078]
[1758207877464,0.06,248.05,248.04,4.7316078]
[1758207878772,0.06,248.05,248.03,0.03]
[1758207878773,0.06,248.05,248.03,26.03]
[1758207879081,0.06,248.05,248.03,0.03]
[1758207881075,0.69,248.04,248.03,0.03]
[1758207882295,0.97432314,248.04,248.03,0.03]
[1758207884278,0.69,248.04,248.03,0.03]
[1758207884663,0.06,248.05,248.03,0.03]
[1758207884868,0.75,248.05,248.03,0.03]
[1758207885069,0.06,248.05,248.03,0.03]
[1758207890696,0.75,248.05,248.03,0.03]
[1758207891192,0.06,248.05,248.03,0.03]
[1758207894107,0.75,248.05,248.03,0.03]
[1758207894677,0.69,248.04,248.03,0.03]
[1758207894987,6.74301482,248.04,248.03,0.03]
[1758207895199,7.02733796,248.04,248.03,0.03]
[1758207895611,7.02733796,248.04,248.0,0.03]
[1758207895612,0.28432314,248.03,248.0,0.03]
[1758207895783,0.28432314,248.0,247.98,0.03]
[1758207895986,6.74301482,247.99,247.98,0.03]
[1758207896191,10.77543548,247.99,247.98,0.03]
[1758207896501,10.08543548,247.99,247.98,0.03]
[1758207896697,10.77543548,247.99,247.98,0.03]
[1758207897500,6.05301482,247.99,247.98,0.03]
[1758207897677,0.69,248.03,247.98,0.03]
[1758207897991,6.05301482,248.0,247.98,0.03]
[1758207898773,0.69,247.99,247.98,0.03]
[1758207899012,6.05301482,247.99,247.98,0.03]
[1758207900276,1.03432314,248.05,247.98,0.03]
[1758207900494,6.05301482,248.01,247.98,0.03]
[1758207901704,4.78155045,248.05,247.98,0.74]
[1758207901898,6.11301482,248.05,247.99,0.71]
[1758207902081,0.06,248.05,247.99,0.71]
[1758207902492,0.06,248.05,247.98,0.03]
[1758207902796,6.70301482,248.04,247.98,0.03]
[1758207903102,6.05301482,248.0,247.98,0.03]
[1758207904002,6.05301482,248.01,247.98,0.03]
[1758207904410,6.70301482,248.01,247.98,0.03]
[1758207904702,6.05301482,248.01,247.98,0.03]
[1758207904877,0.65,248.0,247.98,0.03]
[1758207905080,6.05301482,247.99,247.98,0.03]
[1758207905278,6.70301482,247.99,247.98,0.03]
[1758207905893,4.03208156,248.02,247.98,0.03]
[1758207906092,6.05301482,248.01,247.98,0.03]
[1758207906291,6.70301482,247.99,247.98,0.03]
[1758207906491,6.70301482,247.99,247.91,26.0]
[1758207906700,6.05301482,247.96,247.88,0.03]
[1758207907083,6.05301482,247.94,247.88,0.03]
[1758207907480,0.65,247.99,247.89,4.06396975]
[1758207907684,6.05301482,247.97,247.89,0.03]
[1758207907997,6.05301482,248.01,247.89,0.03]
[1758207908399,0.65,248.02,247.91,26.0]
[1758207908606,0.71,248.05,247.96,13.59559401]
[1758207908786,0.71,248.05,247.99,26.0]
[1758207908787,0.06,248.05,247.99,26.0]
[1758207909703,0.06,248.05,248.0,4.03225806]
[1758207910186,0.71,248.05,247.98,30.03242407]
[1758207910395,10.79449667,248.05,247.98,30.03242407]
[1758207910606,6.76301482,248.05,247.98,30.03242407]
[1758207910918,10.79451039,248.05,247.98,30.03242407]
[1758207911089,0.65,248.04,247.97,4.03274137]
[1758207911706,0.06,248.05,247.97,10.08186474]
[1758207912095,6.70301482,248.04,247.98,0.03]
[1758207912690,6.05301482,248.04,247.98,0.03]
[1758207912915,0.06,248.05,247.98,0.03]
[1758207913295,0.71,248.05,247.98,0.03]
[1758207914100,6.76301482,248.05,247.98,0.03]
[1758207914300,6.05301482,248.03,247.98,0.03]
[1758207914817,0.65,248.02,247.98,0.03]
[1758207915520,6.76301482,248.05,247.98,0.03]
[1758207916409,0.06,248.05,247.99,26.0]
[1758207916710,0.06,248.05,248.0,0.13]
[1758207916918,0.06,248.05,248.01,0.13]
[1758207917309,0.06,248.05,248.03,26.0]
[1758207917514,0.06,248.05,248.03,26.13]
[1758207917697,0.06,248.05,248.03,26.0]
[1758207918097,0.06,248.05,248.01,26.0]
[1758207918298,0.06,248.05,248.02,14.11176517]
[1758207918514,0.06,248.05,248.02,14.24176517]
[1758207918723,0.06,248.05,248.02,14.11176517]
[1758207919014,0.06,248.05,248.04,26.0]
[1758207919614,0.06,248.05,248.04,30.1616078]
[1758207920515,0.06,248.05,248.04,30.0316078]
[1758207920821,0.71,248.05,248.04,30.0316078]
[1758207920999,0.71,248.05,248.01,26.0]
[1758207921401,0.71,248.05,248.0,4.0321046]
[1758207921402,0.65,248.04,248.0,4.0321046]
[1758207921603,0.65,248.04,247.98,23.70684015]
[1758207921604,0.06,248.05,247.99,14.11347231]
[1758207923426,0.06,248.05,248.0,13.99881981]
[1758207923724,0.06,248.05,248.03,26.0]
[1758207924822,0.06,248.05,248.03,26.13]
[1758207925016,0.06,248.05,248.03,26.0]
[1758207925728,0.06,248.05,248.04,4.0316078]
[1758207926929,0.06,248.05,248.04,17.75720181]
[1758207927813,1e-08,248.05,248.04,18.04152495]
[1758207928907,1e-08,248.09,248.08,39.87991715]
[1758207929103,1e-08,248.09,248.08,40.28301292]
[1758207929407,1e-08,248.09,248.08,40.41301292]
[1758207929817,1e-08,248.09,248.08,43.62655176]
[1758207932712,1e-08,248.09,248.08,30.03095775]
[1758207932913,1e-08,248.09,248.08,43.62655176]
[1758207934344,1e-08,248.09,248.08,44.02964753]
[1758207935518,1e-08,248.19,248.08,74.54615382]
[1758207935837,1e-08,248.19,248.16,26.0]
[1758207936430,1e-08,248.19,248.18,26.0]
[1758207936935,1e-08,248.19,248.18,30.02933354]
[1758207937119,1e-08,248.19,248.18,43.62492755]
[1758207938942,4.02756343,248.29,248.18,53.69826142]
[1758207939147,10.08057825,248.29,248.18,53.69826142]
[1758207940238,6.05301482,248.29,248.19,13.59559401]
[1758207940448,0.3,248.3,248.19,13.59559401]
[1758207940831,0.3,248.3,248.2,14.10153101]
[1758207941332,0.3,248.3,248.23,26.0]
[1758207942732,0.98,248.3,248.23,26.0]
[1758207942941,0.98,248.3,248.24,4.02835965]
[1758207943143,0.98,248.3,248.22,26.0]
[1758207943344,7.03301482,248.3,248.22,26.0]
[1758207943552,7.03301482,248.3,248.22,30.02865706]
[1758207944259,7.03301482,248.3,248.22,40.10036763]
[1758207944836,0.98,248.3,248.22,40.10036763]
[1758207945042,0.3,248.3,248.22,40.10036763]
[1758207945240,0.3,248.3,248.23,13.59559401]
[1758207947329,0.3,248.3,248.22,40.10036763]
[1758207947926,4.32740932,248.3,248.22,40.10036763]
[1758207948557,6.05301482,248.29,248.22,4.02865706]
[1758207949538,0.3,248.3,248.23,13.59559401]
[1758207949752,0.3,248.3,248.22,13.59559401]
[1758207950559,0.3,248.3,248.24,26.0]
[1758207951359,0.3,248.3,248.22,13.59559401]
[1758207951763,0.3,248.3,248.23,4.02852193]
[1758207952064,0.3,248.3,248.23,14.09982676]
[1758207953055,0.3,248.3,248.24,13.59559401]
[1758207953634,0.3,248.3,248.23,14.09982676]
[1758207953835,0.3,248.3,248.21,4.02884654]
[1758207954054,0.3,248.3,248.23,26.0]
[1758207954253,4.32740119,248.3,248.24,26.0]
[1758207954560,1.98170643,248.3,248.24,26.0]
[1758207954862,6.00909445,248.3,248.21,30.02884654]
[1758207955162,1.68170643,248.26,248.15,12.09165475]
[1758207955459,0.68,248.29,248.15,10.07436997]
[1758207955460,1.68170643,248.25,248.15,10.07436997]
[1758207955749,1.68170643,248.23,248.15,10.07436997]
[1758207956938,1.68170643,248.26,248.15,10.07436997]
[1758207957146,1.68170643,248.26,248.16,0.71]
[1758207957345,0.71,248.27,248.16,0.71]
[1758207958547,4.02803512,248.26,248.17,4.02949591]
[1758207958768,4.02803512,248.26,248.17,14.10323568]
[1758207959937,3.52803512,248.26,248.17,14.10323568]
[1758207960141,0.71,248.25,248.17,4.02949591]
[1758207960349,0.71,248.28,248.17,4.02949591]
[1758207960547,0.71,248.27,248.15,26.0]
[1758207960871,26.0,248.13,248.11,0.1]
[1758207961041,26.0,248.13,248.03,0.03]
[1758207961042,8.40853215,248.09,248.03,0.03]
[1758207961242,8.40853215,248.04,248.03,0.03]
[1758207961762,26.0,248.02,248.01,0.1]
[1758207961967,34.40853215,248.02,247.95,4.05754843]
[1758207962142,12.44144068,247.96,247.8,0.74]
[1758207962343,12.44144068,247.96,247.83,0.91]
[1758207962344,27.68170643,247.94,247.83,0.91]
[1758207962861,15.56162358,247.94,247.86,0.72]
[1758207963042,16.02162358,247.94,247.86,0.72]
[1758207963244,15.56162358,247.94,247.86,0.72]
[1758207963542,15.73730044,247.94,247.86,0.03]
[1758207963746,0.46,247.94,247.86,0.03]
[1758207963948,3.90670806,247.9,247.86,0.03]
[1758207964157,3.90670806,247.9,247.87,0.72]
[1758207964350,4.03353311,247.93,247.87,0.03]
[1758207964553,30.03317978,247.95,247.9,0.69]
[1758207964756,30.03314133,247.95,247.87,0.72]
[1758207965073,3.90670806,247.9,247.87,0.03]
[1758207965641,1.61482409,247.98,247.89,0.72]
[1758207965851,3.90670806,247.96,247.89,0.72]
[1758207966066,3.90670806,248.0,247.89,0.72]
[1758207966272,3.90670806,247.96,247.9,4.03388463]
[1758207966480,3.90670806,247.95,247.91,0.69]
[1758207966645,3.90670806,247.95,247.92,0.69]
[1758207966846,3.90670806,248.0,247.93,0.69]
[1758207967159,12.28935073,248.02,247.93,0.69]
[1758207967477,24.51041289,248.05,247.93,0.69]